bitfinex/quotes_SOLUSD_20230102
["timestamp","ask_amount","ask_price","bid_price","bid_amount"]
[1672699450475,51.77321422,11.295,11.28,50.0]
[1672699450476,66.48,11.294,11.28,50.0]
[1672699450795,66.48,11.294,11.279,231.1201]
[1672699450796,45.2707387,11.29,11.279,164.5501]
[1672699451107,45.2707387,11.289,11.28,24.4019]
[1672699451426,3.13,11.29,11.28,24.4019]
[1672699452046,3.13,11.29,11.28,74.4019]
[1672699452258,3.13,11.29,11.28,24.4019]
[1672699452259,54.90321422,11.29,11.28,24.4019]
[1672699452788,50.0,11.289,11.28,24.4019]
[1672699453010,54.90321422,11.29,11.28,74.4019]
[1672699454880,54.90321422,11.29,11.28,24.4019]
[1672699455289,54.90321422,11.29,11.28,74.4019]
[1672699457825,54.90321422,11.29,11.28,24.4019]
[1672699458034,54.90321422,11.29,11.28,74.4019]
[1672699470129,54.90321422,11.29,11.281,50.0]
[1672699477397,54.90321422,11.29,11.28,189.9596]
[1672699478651,54.90321422,11.29,11.28,139.9596]
[1672699480030,51.77321422,11.29,11.28,139.9596]
[1672699483279,51.77321422,11.29,11.281,50.0]
[1672699489792,51.77321422,11.29,11.28,143.0896]
[1672699491600,51.77321422,11.29,11.281,50.0]
[1672699495490,51.77321422,11.29,11.28,143.0896]
[1672699497048,51.77321422,11.29,11.28,139.9596]
[1672699497590,101.86813286,11.29,11.28,139.9596]
[1672699498744,66.51,11.289,11.28,139.9596]
[1672699499567,118.28321422,11.289,11.28,139.9596]
[1672699500310,168.37813286,11.289,11.28,139.9596]
[1672699501036,101.86813286,11.289,11.28,139.9596]
[1672699501679,51.77321422,11.289,11.28,139.9596]
[1672699502404,51.77321422,11.289,11.281,50.0]
[1672699504191,118.28321422,11.289,11.281,50.0]
[1672699505344,168.37813286,11.289,11.28,139.9596]
[1672699506507,168.37813286,11.289,11.28,139.4596]
[1672699509552,118.28321422,11.289,11.28,139.4596]
[1672699509891,51.77321422,11.289,11.28,139.4596]
[1672699512001,22.6337,11.29,11.281,50.0]
[1672699513156,89.1337,11.29,11.28,139.4596]
[1672699513677,146.88691422,11.29,11.28,139.4596]
[1672699514207,146.88691422,11.29,11.281,50.0]
[1672699516393,146.88691422,11.29,11.28,139.4596]
[1672699519770,146.88691422,11.29,11.281,50.0]
[1672699522322,146.88691422,11.29,11.281,45.0]
[1672699525581,80.38691422,11.29,11.281,45.0]
[1672699526179,146.88691422,11.29,11.281,45.0]
[1672699526939,146.88691422,11.29,11.28,142.5896]
[1672699527553,192.15765292,11.29,11.28,139.4596]
[1672699529864,50.09491864,11.289,11.28,139.4596]
[1672699530079,50.0,11.288,11.28,139.4596]
[1672699530402,66.51,11.288,11.28,139.4596]
[1672699530605,66.51,11.289,11.28,139.4596]
[1672699532417,174.35813286,11.289,11.28,139.4596]
[1672699533567,124.26321422,11.289,11.28,139.4596]
[1672699533772,10.3030362,11.288,11.28,139.4596]
[1672699534612,10.3030362,11.288,11.28,142.5896]
[1672699537872,10.3030362,11.288,11.281,50.0]
[1672699542702,10.3030362,11.288,11.283,50.0]
[1672699542919,45.2707387,11.297,11.284,66.54]
[1672699543124,45.2707387,11.297,11.285,50.0]
[1672699543322,45.2707387,11.297,11.287,50.0]
[1672699543750,10.37705872,11.296,11.287,50.0]
[1672699544816,69.4960387,11.297,11.289,50.0]
[1672699546489,24.2253,11.297,11.29,3.1]
[1672699549010,66.44,11.3,11.29,3.1]
[1672699549211,24.8051,11.306,11.292,50.0]
[1672699549421,24.8051,11.306,11.293,23.4498]
[1672699549636,24.8051,11.306,11.294,50.0]
[1672699549858,66.41,11.305,11.294,184.1787]
[1672699550791,91.2151,11.306,11.294,184.1787]
[1672699552055,24.8051,11.306,11.294,184.1787]
[1672699552368,24.8051,11.306,11.296,50.0]
[1672699558893,24.8051,11.306,11.298,50.0]
[1672699571394,24.8051,11.306,11.297,66.46]
[1672699571724,24.8051,11.306,11.298,50.0]
[1672699575917,24.8051,11.306,11.297,23.3019]
[1672699576136,50.0,11.304,11.297,23.3019]
[1672699576555,119.18254781,11.303,11.297,23.3019]
[1672699576761,50.0,11.302,11.297,23.3019]
[1672699577493,119.18254781,11.303,11.297,23.3019]
[1672699577709,52.75254781,11.303,11.297,23.3019]
[1672699578024,66.42,11.304,11.297,23.3019]
[1672699579587,119.17254781,11.304,11.297,23.3019]
[1672699585697,66.42,11.304,11.297,23.3019]
[1672699585907,23.9782,11.305,11.297,23.3019]
[1672699589376,76.73074781,11.305,11.297,23.3019]
[1672699590638,76.73074781,11.305,11.297,73.3019]
[1672699590841,23.9782,11.305,11.297,73.3019]
[1672699591273,23.9782,11.305,11.297,23.3019]
[1672699591482,66.42,11.304,11.297,23.3019]
[1672699591797,76.85014128,11.305,11.297,23.3019]
[1672699592726,23.9782,11.305,11.297,23.3019]
[1672699596089,23.9782,11.305,11.299,50.0]
[1672699600514,23.9782,11.305,11.298,116.46]
[1672699601245,23.9782,11.305,11.299,50.0]
[1672699603678,23.9782,11.305,11.298,66.46]
[1672699604099,23.9782,11.305,11.299,50.0]
[1672699607993,23.9782,11.305,11.298,50.0]
[1672699608201,23.9782,11.305,11.297,73.3019]
[1672699610834,23.9782,11.305,11.299,50.0]
[1672699616384,59.93527462,11.309,11.299,50.0]
[1672699616594,59.93527462,11.309,11.299,140.0855]
[1672699618185,3.12,11.31,11.299,50.0]
[1672699618401,66.39,11.309,11.299,50.0]
[1672699618936,126.32527462,11.309,11.299,50.0]
[1672699626705,59.93527462,11.309,11.299,50.0]
[1672699627556,28.078,11.31,11.299,50.0]
[1672699628704,66.39,11.309,11.299,116.45]
[1672699628919,94.468,11.31,11.299,50.0]
[1672699639312,91.348,11.31,11.3,3.13]
[1672699655514,91.348,11.31,11.299,50.0]
[1672699660030,94.478,11.31,11.299,50.0]
[1672699661518,139.7487387,11.31,11.299,50.0]
[1672699664061,94.478,11.31,11.299,50.0]
[1672699667630,139.7487387,11.31,11.299,50.0]
[1672699668998,94.478,11.31,11.299,50.0]
[1672699669524,139.7487387,11.31,11.299,50.0]
[1672699670450,94.478,11.31,11.299,50.0]
[1672699671297,139.7487387,11.31,11.299,50.0]
[1672699674381,139.7487387,11.31,11.3,3.12]
[1672699674382,139.7387387,11.31,11.3,3.12]
[1672699675108,94.468,11.31,11.3,3.12]
[1672699677295,69.51,11.31,11.3,3.12]
[1672699677513,3.12,11.31,11.3,3.12]
[1672699677722,66.39,11.309,11.3,3.12]
[1672699677934,3.12,11.31,11.3,3.12]
[1672699678145,3.12,11.31,11.301,50.0]
[1672699679083,69.51,11.31,11.301,50.0]
[1672699679515,3.12,11.31,11.301,50.0]
[1672699680365,3.12,11.31,11.301,74.8286]
[1672699687420,3.12,11.31,11.301,74.7242992]
[1672699696275,3.05759918,11.31,11.301,74.7242992]
[1672699701431,3.05759918,11.31,11.301,24.8286]
[1672699701830,3.05759918,11.31,11.302,50.0]
[1672699702363,3.05759918,11.31,11.302,73.9917]
[1672699704862,3.05759918,11.31,11.302,23.9917]
[1672699707718,3.05759918,11.31,11.303,50.0]
[1672699711696,3.05759918,11.31,11.301,81.8962375]
[1672699712021,51.96194128,11.309,11.299,50.0]
[1672699712212,51.96194128,11.309,11.298,50.0]
[1672699712568,66.4,11.308,11.292,66.49]
[1672699712740,114.7536,11.308,11.292,66.49]
[1672699712951,50.0,11.307,11.293,50.0]
[1672699713474,48.3536,11.306,11.295,50.0]
[1672699714967,48.3536,11.306,11.297,50.0]
[1672699723472,48.3536,11.306,11.296,90.2301]
[1672699723677,48.3536,11.306,11.296,23.7601]
[1672699723885,50.0,11.304,11.296,23.7601]
[1672699724109,66.43,11.303,11.296,23.7601]
[1672699724302,116.42,11.304,11.296,23.7601]
[1672699724632,116.42,11.304,11.287,116.52]
[1672699724952,3.12,11.3,11.287,116.52]
[1672699725351,66.45,11.299,11.287,116.52]
[1672699725682,90.5598,11.299,11.287,116.52]
[1672699728079,24.1098,11.299,11.287,116.52]
[1672699728942,3.12,11.3,11.29,53.12]
[1672699729160,3.12,11.3,11.291,66.5]
[1672699729347,3.12,11.3,11.291,90.1871]
[1672699729557,3.12,11.3,11.292,50.0]
[1672699733781,3.12,11.3,11.288,25.70740524]
[1672699733997,50.0,11.299,11.288,66.51]
[1672699734305,89.206,11.298,11.28,3.12]
[1672699734622,112.0619,11.298,11.286,62.50126044]
[1672699734836,23.1701,11.297,11.286,62.50126044]
[1672699735044,116.47,11.296,11.286,62.50126044]
[1672699735255,139.6401,11.296,11.28,69.68]
[1672699735464,3.12,11.29,11.276,50.0]
[1672699735783,3.12,11.29,11.277,15.80730786]
[1672699735987,3.12,11.29,11.278,66.57]
[1672699736393,3.12,11.29,11.279,15.80730786]
[1672699736605,3.12,11.29,11.275,265.6]
[1672699736931,3.12,11.29,11.277,15.80730786]
[1672699737120,3.12,11.29,11.277,82.38730786]
[1672699737543,3.12,11.29,11.278,15.80730786]
[1672699737756,3.12,11.29,11.279,50.0]
[1672699737981,3.12,11.29,11.279,116.57]
[1672699738393,3.12,11.29,11.279,132.37730786]
[1672699738605,3.12,11.29,11.279,65.80730786]
[1672699738838,3.12,11.29,11.279,50.0]
[1672699739028,66.51,11.289,11.277,66.58]
[1672699739242,69.62,11.29,11.278,20.0]
[1672699739468,69.62,11.29,11.278,44.6504]
[1672699739644,3.12,11.29,11.28,50.0]
[1672699740296,3.12,11.29,11.279,141.2204]
[1672699740502,3.12,11.29,11.279,91.2204]
[1672699740723,3.12,11.29,11.279,24.6504]
[1672699740907,69.62,11.29,11.279,24.6504]
[1672699741553,3.12,11.29,11.279,24.6504]
[1672699741765,3.1,11.29,11.279,74.6504]
[1672699742302,3.1,11.29,11.279,91.2204]
[1672699742616,3.1,11.29,11.279,24.6504]
[1672699743454,3.1,11.29,11.279,91.2204]
[1672699743666,50.0,11.288,11.279,91.2204]
[1672699743865,50.0,11.288,11.279,23.6504]
[1672699744078,15.65,11.29,11.279,23.6504]
[1672699744282,15.65,11.29,11.276,66.59]
[1672699744497,163.2017,11.289,11.275,24.2262]
[1672699744719,50.0,11.287,11.275,24.2262]
[1672699744919,90.9228,11.286,11.275,24.2262]
[1672699745327,24.3928,11.286,11.275,24.2262]
[1672699745543,50.0,11.285,11.275,22.7262]
[1672699745960,220.98496351,11.286,11.275,22.7262]
[1672699746195,24.3928,11.285,11.273,184.3469]
[1672699746405,24.3928,11.284,11.273,66.6]
[1672699746597,24.3928,11.284,11.272,50.0]
[1672699746810,143.7647,11.283,11.273,66.6]
[1672699747669,143.7647,11.283,11.274,50.0]
[1672699747869,143.7647,11.283,11.275,66.59]
[1672699748496,143.7647,11.283,11.276,50.0]
[1672699749864,143.7647,11.283,11.277,66.58]
[1672699750487,143.7647,11.283,11.278,50.0]
[1672699751241,119.3719,11.283,11.278,50.0]
[1672699753338,3.12,11.3,11.279,120.70009476]
[1672699753540,3.12,11.3,11.281,50.0]
[1672699753755,50.0,11.306,11.282,266.7973]
[1672699753969,66.41,11.305,11.282,507.86285292]
[1672699754170,66.41,11.305,11.283,237.77241675]
[1672699754380,66.41,11.305,11.284,86.54]
[1672699754595,50.0,11.304,11.285,50.0]
[1672699754815,66.43,11.303,11.286,266.7773]
[1672699755024,66.43,11.303,11.286,428.92572288]
[1672699755218,66.43,11.303,11.286,483.05581764]
[1672699755431,66.43,11.303,11.288,50.0]
[1672699755640,66.43,11.303,11.289,66.51]
[1672699755961,66.43,11.303,11.289,171.47705335]
[1672699756180,66.41,11.305,11.29,50.0]
[1672699756501,66.41,11.305,11.292,50.0]
[1672699757639,66.41,11.306,11.292,50.0]
[1672699757849,66.41,11.306,11.292,212.9031]
[1672699758486,66.41,11.306,11.292,279.3931]
[1672699758917,66.4,11.307,11.292,212.9031]
[1672699759121,50.0,11.306,11.292,212.9031]
[1672699759316,66.41,11.305,11.292,212.9031]
[1672699762572,66.41,11.306,11.292,212.9031]
[1672699762912,3.12,11.3,11.293,117.6755]
[1672699763315,3.12,11.3,11.294,50.0]
[1672699763972,66.42,11.304,11.293,117.6755]
[1672699764377,3.13,11.3,11.293,117.6755]
[1672699768270,3.13,11.3,11.289,66.51]
[1672699768487,66.45,11.299,11.287,66.52]
[1672699768696,66.45,11.299,11.286,66.53]
[1672699768913,50.0,11.298,11.287,50.0]
[1672699769625,66.45,11.299,11.287,50.0]
[1672699770272,50.0,11.298,11.287,50.0]
[1672699771303,66.45,11.299,11.287,50.0]
[1672699774162,212.6207,11.3,11.287,50.0]
[1672699774361,66.45,11.299,11.287,50.0]
[1672699774993,66.45,11.299,11.286,66.53]
[1672699775204,50.0,11.298,11.285,116.53]
[1672699775423,50.0,11.298,11.285,50.0]
[1672699775615,66.46,11.297,11.285,50.0]
[1672699778779,66.46,11.297,11.284,113.9844]
[1672699779203,66.46,11.297,11.285,50.0]
[1672699781202,66.46,11.297,11.285,116.53]
[1672699781738,66.46,11.297,11.285,50.0]
[1672699782574,159.2739,11.298,11.285,50.0]
[1672699783817,66.46,11.297,11.285,50.0]
[1672699786033,90.8174,11.297,11.285,50.0]
[1672699790760,24.3574,11.297,11.285,50.0]
[1672699790962,90.8174,11.297,11.285,116.53]
[1672699792145,90.8174,11.297,11.285,74.9584]
[1672699794636,24.3574,11.297,11.285,74.9584]
[1672699795065,24.3574,11.297,11.287,50.0]
[1672699797394,90.8174,11.297,11.287,50.0]
[1672699797583,24.3574,11.297,11.287,50.0]
[1672699798016,90.8174,11.297,11.287,50.0]
[1672699798446,90.8174,11.297,11.285,74.9584]
[1672699799598,24.3574,11.297,11.285,74.9584]
[1672699799912,90.8174,11.297,11.285,74.9584]
[1672699802007,24.3574,11.297,11.285,74.9584]
[1672699802219,90.8174,11.297,11.285,74.9584]
[1672699804966,90.8174,11.297,11.285,24.9584]
[1672699810222,50.0,11.296,11.285,24.9584]
[1672699810955,74.6225,11.296,11.285,24.9584]
[1672699811894,24.6225,11.296,11.285,24.9584]
[1672699818319,50.0,11.295,11.285,24.9584]
[1672699819679,116.47,11.295,11.285,24.9584]
[1672699820112,141.0925,11.296,11.285,24.9584]
[1672699820838,50.0,11.295,11.285,24.9584]
[1672699821255,66.48,11.294,11.285,24.9584]
[1672699821775,16.48,11.294,11.286,50.0]
[1672699822114,66.48,11.294,11.285,24.9584]
[1672699822319,65.98,11.294,11.285,24.9584]
[1672699823146,162.52417747,11.294,11.285,24.9584]
[1672699823478,50.0,11.293,11.285,24.9584]
[1672699823794,50.0,11.291,11.285,24.9584]
[1672699825261,148.26747771,11.291,11.285,24.9584]
[1672699825469,195.87144518,11.291,11.285,24.9584]
[1672699827046,145.87144518,11.291,11.285,24.9584]
[1672699831478,102.2295108,11.291,11.285,24.9584]
[1672699832405,54.62554333,11.291,11.285,24.9584]
[1672699834402,24.0629,11.294,11.285,24.9584]
[1672699834620,24.0629,11.294,11.285,74.9584]
[1672699835766,24.0629,11.294,11.285,141.4884]
[1672699836420,24.0629,11.294,11.286,50.0]
[1672699836629,24.0629,11.294,11.288,50.0]
[1672699837579,45.2707387,11.298,11.288,50.0]
[1672699837778,45.2707387,11.299,11.289,66.51]
[1672699837983,45.2707387,11.299,11.29,159.7512]
[1672699838197,91.0609,11.302,11.29,159.7512]
[1672699838530,91.0609,11.302,11.292,50.0]
[1672699839247,24.6309,11.302,11.292,50.0]
[1672699839455,24.6309,11.302,11.292,74.7296]
[1672699839672,24.6309,11.302,11.293,66.49]
[1672699840183,24.6309,11.302,11.293,91.2196]
[1672699840603,24.6309,11.302,11.294,40.0]
[1672699841050,24.6309,11.302,11.293,24.7296]
[1672699842097,24.6309,11.302,11.294,40.0]
[1672699843871,24.6309,11.302,11.293,91.2196]
[1672699844495,24.6309,11.302,11.293,24.7296]
[1672699847232,91.0609,11.302,11.293,24.7296]
[1672699848497,24.6309,11.302,11.293,64.7296]
[1672699849877,24.6309,11.302,11.293,24.7296]
[1672699850077,24.6309,11.302,11.293,64.7296]
[1672699850703,24.6309,11.302,11.293,24.7296]
[1672699852390,24.6309,11.302,11.293,64.7296]
[1672699858578,24.6309,11.302,11.293,131.2196]
[1672699859445,24.6309,11.302,11.293,91.2196]
[1672699859968,24.6309,11.302,11.294,40.0]
[1672699863013,24.6309,11.302,11.295,66.47]
[1672699863232,24.6309,11.302,11.296,40.0]
[1672699865437,24.6309,11.302,11.296,37.0]
[1672699870281,24.6309,11.302,11.297,66.46]
[1672699870471,24.6309,11.302,11.298,40.0]
[1672699870681,24.0867,11.307,11.298,40.0]
[1672699870897,119.4949,11.309,11.298,40.0]
[1672699871744,66.4,11.308,11.298,40.0]
[1672699871962,23.9325,11.309,11.3,3.13]
[1672699873006,23.9325,11.309,11.3,43.13]
[1672699873426,23.413,11.31,11.3,66.7065]
[1672699875868,23.413,11.31,11.3,26.7065]
[1672699876056,23.413,11.31,11.3,66.7065]
[1672699876478,23.413,11.31,11.3,26.7065]
[1672699876919,66.39,11.309,11.3,26.7065]
[1672699877131,40.0,11.308,11.3,26.7065]
[1672699877333,66.39,11.309,11.3,26.7065]
[1672699877881,92.923,11.31,11.294,40.0]
[1672699878072,92.923,11.31,11.295,40.0]
[1672699878073,40.0,11.307,11.295,40.0]
[1672699878790,24.9252,11.307,11.296,66.47]
[1672699878996,24.9252,11.307,11.297,40.0]
[1672699880487,24.9252,11.307,11.295,40.0]
[1672699880815,24.9252,11.307,11.296,66.47]
[1672699880997,24.9252,11.307,11.297,40.0]
[1672699887743,24.9252,11.307,11.296,66.47]
[1672699888067,24.9252,11.307,11.297,40.0]
[1672699891928,24.9252,11.307,11.299,40.0]
[1672699894993,24.9252,11.307,11.297,40.0]
[1672699898551,24.9252,11.307,11.299,40.0]
[1672699904329,24.9252,11.307,11.297,106.46]
[1672699911294,24.9252,11.307,11.297,40.0]
[1672699914117,24.9252,11.307,11.297,106.46]
[1672699921275,24.9252,11.307,11.297,66.46]
[1672699921797,24.9252,11.307,11.296,106.47]
[1672699932415,24.9252,11.307,11.296,66.47]
[1672699932727,24.9252,11.307,11.295,66.47]
[1672699932919,24.4734,11.306,11.296,40.0]
[1672699933359,24.4734,11.306,11.295,66.47]
[1672699933891,24.4734,11.306,11.296,40.0]
[1672699934287,24.4734,11.306,11.295,106.47]
[1672699934513,24.4734,11.306,11.295,40.0]
[1672699935550,90.8834,11.306,11.295,40.0]
[1672699935760,90.8834,11.306,11.294,90.4591]
[1672699935980,24.4734,11.306,11.294,90.4591]
[1672699936526,40.0,11.305,11.294,90.4591]
[1672699937127,64.9927,11.305,11.294,90.4591]
[1672699937664,64.9927,11.305,11.294,23.9791]
[1672699938701,24.9927,11.305,11.294,23.9791]
[1672699939020,24.9927,11.305,11.296,40.0]
[1672699940500,24.9927,11.305,11.295,40.0]
[1672699941117,24.9927,11.305,11.294,23.9791]
[1672699941769,83.27827355,11.305,11.294,23.9791]
[1672699942382,83.27827355,11.305,11.294,63.9791]
[1672699942608,83.27827355,11.305,11.294,130.4591]
[1672699942819,83.27827355,11.305,11.294,63.9791]
[1672699945010,83.27827355,11.305,11.294,23.9791]
[1672699945429,83.27827355,11.305,11.294,63.9791]
[1672699946922,83.27827355,11.305,11.294,23.9791]
[1672699947110,66.42,11.304,11.294,23.9791]
[1672699947329,40.0,11.303,11.294,23.9791]
[1672699947652,124.70557355,11.304,11.294,23.9791]
[1672699949333,124.70557355,11.304,11.294,63.9791]
[1672699950368,124.70557355,11.304,11.294,23.9791]
[1672699951123,58.28557355,11.304,11.294,23.9791]
[1672699951843,40.0,11.303,11.294,23.9791]
[1672699952061,106.43,11.303,11.294,23.9791]
[1672699954282,66.43,11.303,11.294,23.9791]
[1672699954999,147.96667355,11.304,11.294,23.9791]
[1672699955209,147.96667355,11.304,11.294,63.9791]
[1672699955849,147.96667355,11.304,11.29,562.1772907]
[1672699956060,15.62,11.3,11.29,562.1772907]
[1672699956268,40.0,11.298,11.287,23.6143]
[1672699956483,40.0,11.298,11.287,23.5246]
[1672699956691,98.28557355,11.298,11.287,23.5246]
[1672699957228,121.74037355,11.298,11.287,23.5246]
[1672699959847,66.46,11.297,11.287,23.5246]
[1672699960264,40.0,11.296,11.287,23.5246]
[1672699961095,90.4709,11.297,11.287,23.5246]
[1672699961322,58.28557355,11.296,11.287,23.5246]
[1672699963010,40.0,11.295,11.287,23.5246]
[1672699964458,98.28557355,11.295,11.287,23.5246]
[1672699967622,58.28557355,11.295,11.287,23.5246]
[1672699970758,24.0109,11.297,11.287,23.5246]
[1672699972136,24.0109,11.297,11.287,63.5246]
[1672699972346,24.0109,11.297,11.288,66.51]
[1672699972562,24.0109,11.297,11.289,40.0]
[1672699974253,24.0109,11.297,11.287,63.5246]
[1672699974989,24.0109,11.297,11.289,40.0]
[1672699976334,24.0109,11.297,11.288,66.51]
[1672699977936,24.0109,11.297,11.289,40.0]
[1672699978450,3.13,11.3,11.289,40.0]
[1672699978672,3.13,11.3,11.289,241.8862]
[1672699978866,3.13,11.3,11.289,175.3762]
[1672699979288,3.13,11.3,11.29,24.6365]
[1672699986870,3.13,11.3,11.29,91.1365]
[1672699987190,3.13,11.3,11.29,24.6365]
[1672699991377,40.0,11.299,11.29,24.6365]
[1672699991809,98.28557355,11.299,11.286,66.53]
[1672699992023,40.0,11.297,11.285,89.7707]
[1672699992444,40.0,11.297,11.286,40.0]
[1672699992868,64.1997,11.297,11.286,40.0]
[1672699993081,122.48527355,11.297,11.286,40.0]
[1672699994000,82.48527355,11.297,11.286,40.0]
[1672699995392,40.0,11.296,11.285,129.7707]
[1672699995721,63.6049,11.296,11.285,129.7707]
[1672699996558,63.6049,11.296,11.285,358.34453471]
[1672699996776,121.89047355,11.296,11.285,291.81453471]
[1672699996964,121.89047355,11.296,11.285,251.81453471]
[1672699998448,81.89047355,11.296,11.285,251.81453471]
[1672699998764,81.89047355,11.296,11.286,40.0]
[1672700000010,81.89047355,11.296,11.286,106.53]
[1672700000531,81.89047355,11.296,11.286,66.53]
[1672700001691,23.6049,11.296,11.287,40.0]
[1672700004748,3.13,11.3,11.287,40.0]
[1672700004965,3.13,11.3,11.288,245.059]
[1672700005168,3.13,11.3,11.289,22.6317]
[1672700005389,3.13,11.3,11.29,66.5]
[1672700005598,3.13,11.3,11.291,62.6317]
[1672700005828,3.13,11.3,11.292,66.49]
[1672700006022,3.13,11.3,11.292,89.1217]
[1672700007418,3.13,11.3,11.293,40.0]
[1672700007708,2.63,11.3,11.293,40.0]
[1672700007926,60.91557355,11.3,11.293,40.0]
[1672700008135,60.91557355,11.3,11.292,22.6317]
[1672700010973,60.91557355,11.3,11.288,66.51]
[1672700011181,60.91557355,11.3,11.285,89.1813]
[1672700011398,40.0,11.298,11.285,89.1813]
[1672700011584,231.0716,11.299,11.285,129.1813]
[1672700012130,164.6216,11.299,11.287,106.52]
[1672700012745,164.6216,11.299,11.287,380.6778]
[1672700013172,222.90717355,11.299,11.287,314.1578]
[1672700013372,289.35717355,11.299,11.287,314.1578]
[1672700014124,289.35717355,11.299,11.289,40.0]
[1672700014320,222.90717355,11.299,11.289,40.0]
[1672700016022,222.90717355,11.299,11.29,228.57383471]
[1672700016211,289.35717355,11.299,11.29,228.57383471]
[1672700019696,289.35717355,11.299,11.285,89.1813]
[1672700019918,23.663,11.298,11.285,22.6513]
[1672700020131,23.8364,11.297,11.285,22.6513]
[1672700020324,23.8364,11.297,11.287,40.0]
[1672700020325,82.12197355,11.297,11.287,40.0]
[1672700028207,82.12197355,11.297,11.287,106.52]
[1672700029164,82.12197355,11.297,11.287,40.0]
[1672700037795,82.12197355,11.297,11.285,129.1813]
[1672700038009,82.12197355,11.297,11.286,40.0]
[1672700042527,82.12197355,11.297,11.288,40.0]
[1672700045783,82.12197355,11.297,11.286,40.0]
[1672700069357,148.58197355,11.297,11.286,40.0]
[1672700073452,148.58197355,11.297,11.285,62.6513]
[1672700073875,193.85271225,11.297,11.285,62.6513]
[1672700077466,148.58197355,11.297,11.285,62.6513]
[1672700083117,148.58197355,11.297,11.285,22.6513]
[1672700084276,193.85271225,11.297,11.285,22.6513]
[1672700084494,193.85271225,11.297,11.285,62.6513]
[1672700085209,193.85271225,11.297,11.285,22.6513]
[1672700085424,98.28557355,11.296,11.285,22.6513]
[1672700085633,40.0,11.294,11.285,22.6513]
[1672700085840,89.3196,11.295,11.285,22.6513]
[1672700089015,89.3196,11.295,11.285,62.6513]
[1672700089420,89.3196,11.295,11.285,22.6513]
[1672700091641,89.3196,11.295,11.285,62.6513]
[1672700092046,22.8496,11.295,11.285,62.6513]
[1672700092796,40.0,11.294,11.285,22.6513]
[1672700093011,45.2707387,11.289,11.285,22.6513]
[1672700093218,45.2707387,11.289,11.284,136.5346]
[1672700093534,116.69991891,11.289,11.284,136.5346]
[1672700093729,116.69991891,11.289,11.284,22.729]
[1672700093942,71.42918021,11.289,11.284,22.729]
[1672700097650,71.42918021,11.289,11.284,17.729]
[1672700097841,40.0,11.288,11.284,17.729]
[1672700098057,71.42918021,11.289,11.284,17.729]
[1672700100899,3.13,11.29,11.284,17.729]
[1672700101225,22.7879,11.292,11.284,17.729]
[1672700103412,89.01708021,11.292,11.284,17.729]
[1672700106804,22.7879,11.292,11.284,17.729]
[1672700107648,22.7879,11.292,11.284,57.729]
[1672700109724,22.7879,11.292,11.284,17.729]
[1672700111208,22.7879,11.292,11.284,57.729]
[1672700112560,118.0765,11.294,11.284,40.0]
[1672700114379,66.22918021,11.295,11.284,40.0]
[1672700115412,66.22918021,11.295,11.283,40.0]